[Event "Biel DQA Blitzn"]
[Site "Biel/Bienne, Switzerland"]
[Date "????.??.??"]
[Round "4.3"]
[White "Zhuang, Yongzhe"]
[Black "Sumarriva Paulin, Laura"]
[Result "0-1"]
[TimeControl "3 min + 2 sec"]
[WhiteElo "1681"]
[BlackElo "1886"]

1. e4 {[%clk 00:03:01]} {[%emt 00:00:02]} e6 {[%clk 00:03:04]} {[%emt
00:00:01]} 2. d4 {[%clk 00:03:01]} {[%emt 00:00:01]} d5 {[%clk 00:03:05]}
{[%emt 00:00:01]} 3. exd5 {[%clk 00:03:01]} {[%emt 00:00:02]} exd5 {[%clk
00:03:06]} {[%emt 00:00:01]} 4. Nf3 {[%clk 00:03:02]} {[%emt 00:00:01]} Bd6
{[%clk 00:03:07]} {[%emt 00:00:02]} 5. c4 {[%clk 00:03:02]} {[%emt 00:00:01]}
Nf6 {[%clk 00:03:07]} {[%emt 00:00:02]} 6. Nc3 {[%clk 00:03:03]} {[%emt
00:00:01]} O-O {[%clk 00:03:06]} {[%emt 00:00:03]} 7. Be2 {[%clk 00:02:58]}
{[%emt 00:00:07]} dxc4 {[%clk 00:03:04]} {[%emt 00:00:05]} 8. Bxc4 {[%clk
00:02:58]} {[%emt 00:00:02]} Bg4 {[%clk 00:03:03]} {[%emt 00:00:02]} 9. O-O
{[%clk 00:02:57]} {[%emt 00:00:03]} Nbd7 {[%clk 00:03:04]} {[%emt 00:00:02]} 10.
h3 {[%clk 00:02:57]} {[%emt 00:00:02]} Bh5 {[%clk 00:03:04]} {[%emt 00:00:02]}
11. Bd3 {[%clk 00:02:56]} {[%emt 00:00:02]} Nb6 {[%clk 00:03:03]} {[%emt
00:00:05]} 12. Bg5 {[%clk 00:02:42]} {[%emt 00:00:15]} c6 {[%clk 00:02:52]}
{[%emt 00:00:13]} 13. Bc2 {[%clk 00:02:29]} {[%emt 00:00:15]} Be7 {[%clk
00:02:49]} {[%emt 00:00:05]} 14. Qd3 {[%clk 00:02:26]} {[%emt 00:00:05]} Bg6
{[%clk 00:02:49]} {[%emt 00:00:04]} 15. Qd2 {[%clk 00:02:20]} {[%emt 00:00:07]}
Nc4 {[%clk 00:02:39]} {[%emt 00:00:13]} 16. Qe2 {[%clk 00:02:16]} {[%emt
00:00:05]} Bxc2 {[%clk 00:02:19]} {[%emt 00:00:23]} 17. Qxc2 {[%clk 00:02:16]}
{[%emt 00:00:01]} Qd7 {[%clk 00:02:10]} {[%emt 00:00:11]} 18. Rad1 {[%clk
00:02:12]} {[%emt 00:00:05]} Nb6 {[%clk 00:02:09]} {[%emt 00:00:04]} 19. Ne5
{[%clk 00:02:10]} {[%emt 00:00:04]} Qc7 {[%clk 00:02:08]} {[%emt 00:00:03]} 20.
Bf4 {[%clk 00:02:08]} {[%emt 00:00:04]} Bd6 {[%clk 00:02:08]} {[%emt 00:00:03]}
21. Rfe1 {[%clk 00:02:08]} {[%emt 00:00:02]} Rad8 {[%clk 00:02:02]} {[%emt
00:00:07]} 22. Bg5 {[%clk 00:02:08]} {[%emt 00:00:02]} Be7 {[%clk 00:02:00]}
{[%emt 00:00:05]} 23. Qf5 {[%clk 00:01:55]} {[%emt 00:00:15]} Nfd5 {[%clk
00:01:53]} {[%emt 00:00:09]} 24. Bf4 {[%clk 00:01:46]} {[%emt 00:00:10]} Nxf4
{[%clk 00:01:44]} {[%emt 00:00:11]} 25. Qxf4 {[%clk 00:01:46]} {[%emt
00:00:02]} Bf6 {[%clk 00:01:34]} {[%emt 00:00:12]} 26. Ne4 {[%clk 00:01:42]}
{[%emt 00:00:06]} Be7 {[%clk 00:01:17]} {[%emt 00:00:19]} 27. Re3 {[%clk
00:01:33]} {[%emt 00:00:11]} Nd5 {[%clk 00:01:16]} {[%emt 00:00:02]} 28. Qf3
{[%clk 00:01:22]} {[%emt 00:00:10]} Nxe3 {[%clk 00:01:16]} {[%emt 00:00:06]} 29.
fxe3 {[%clk 00:01:12]} {[%emt 00:00:12]} f6 {[%clk 00:01:15]} {[%emt 00:00:03]}
30. Nd3 {[%clk 00:01:12]} {[%emt 00:00:03]} Bd6 {[%clk 00:01:08]} {[%emt
00:00:09]} 31. Nxd6 {[%clk 00:01:06]} {[%emt 00:00:08]} Qxd6 {[%clk 00:01:08]}
{[%emt 00:00:01]} 32. Nc5 {[%clk 00:01:06]} {[%emt 00:00:02]} b6 {[%clk
00:01:07]} {[%emt 00:00:03]} 33. Nb7 {[%clk 00:01:06]} {[%emt 00:00:02]} Qe7
{[%clk 00:00:56]} {[%emt 00:00:12]} 34. Nxd8 {[%clk 00:01:06]} {[%emt
00:00:02]} Rxd8 {[%clk 00:00:57]} {[%emt 00:00:02]} 35. Re1 {[%clk 00:01:03]}
{[%emt 00:00:05]} c5 {[%clk 00:00:58]} {[%emt 00:00:02]} 36. d5 {[%clk
00:00:48]} {[%emt 00:00:17]} Qe5 {[%clk 00:00:58]} {[%emt 00:00:01]} 37. e4
{[%clk 00:00:39]} {[%emt 00:00:11]} Rxd5 {[%clk 00:00:46]} {[%emt 00:00:14]} 38.
Qb3 {[%clk 00:00:38]} {[%emt 00:00:03]} Qd4+ {[%clk 00:00:42]} {[%emt
00:00:06]} 39. Kh1 {[%clk 00:00:37]} {[%emt 00:00:02]} c4 {[%clk 00:00:43]}
{[%emt 00:00:02]} 40. Qa4 {[%clk 00:00:30]} {[%emt 00:00:08]} Rd8 {[%clk
00:00:43]} {[%emt 00:00:03]} 41. Qxa7 {[%clk 00:00:19]} {[%emt 00:00:13]} Qxb2
{[%clk 00:00:40]} {[%emt 00:00:05]} 42. Qb7 {[%clk 00:00:13]} {[%emt 00:00:08]}
c3 {[%clk 00:00:37]} {[%emt 00:00:05]} 43. Qc6 {[%clk 00:00:11]} {[%emt
00:00:04]} c2 {[%clk 00:00:35]} {[%emt 00:00:05]} 44. Qe6+ {[%clk 00:00:10]}
{[%emt 00:00:03]} Kh8 {[%clk 00:00:35]} {[%emt 00:00:02]} 45. Qc4 {[%clk
00:00:11]} {[%emt 00:00:01]} h6 {[%clk 00:00:31]} {[%emt 00:00:05]} 46. Kh2
{[%clk 00:00:08]} {[%emt 00:00:05]} b5 {[%clk 00:00:29]} {[%emt 00:00:05]} 47.
Qc6 {[%clk 00:00:07]} {[%emt 00:00:03]} b4 {[%clk 00:00:20]} {[%emt 00:00:11]}
48. Qc7 {[%clk 00:00:07]} {[%emt 00:00:02]} Rg8 {[%clk 00:00:11]} {[%emt
00:00:11]} 49. Qc4 {[%clk 00:00:06]} {[%emt 00:00:03]} Rd8 {[%clk 00:00:08]}
{[%emt 00:00:05]} 50. Qc7 {[%clk 00:00:06]} {[%emt 00:00:01]} Qe5+ {[%clk
00:00:09]} {[%emt 00:00:01]} 51. Qxe5 {[%clk 00:00:06]} {[%emt 00:00:02]} fxe5
{[%clk 00:00:10]} {[%emt 00:00:01]} 52. Rc1 {[%clk 00:00:07]} Rc8 {[%clk
00:00:11]} {[%emt 00:00:01]} 53. Kg3 {[%clk 00:00:08]} {[%emt 00:00:02]} Kg8
{[%clk 00:00:10]} {[%emt 00:00:02]} 54. Kg4 {[%clk 00:00:09]} Kf7 {[%clk
00:00:11]} 55. Kf5 {[%clk 00:00:10]} {[%emt 00:00:01]} Rc5 {[%clk 00:00:12]}
{[%emt 00:00:01]} 56. g4 {[%clk 00:00:10]} {[%emt 00:00:02]} g6# {[%clk
00:00:13]} {[%emt 00:00:01]} 0-1

[Event "Biel DQA Blitzn"]
[Site "Biel/Bienne, Switzerland"]
[Date "????.??.??"]
[Round "4.4"]
[White "Avilova, Yulia"]
[Black "Keymer, Cecilia"]
[Result "0-1"]
[TimeControl "3 min + 2 sec"]
[WhiteElo "1597"]
[BlackElo "1652"]

1. Nf3 {[%clk 00:03:03]} {[%emt 00:08:21]} d5 {[%clk 00:03:04]} 2. c4 {[%clk
00:03:04]} c6 {[%clk 00:03:04]} {[%emt 00:00:01]} 3. e3 {[%clk 00:03:05]} Nf6
{[%clk 00:03:04]} {[%emt 00:00:03]} 4. d4 {[%clk 00:03:07]} a6 {[%clk
00:03:04]} {[%emt 00:00:03]} 5. Nc3 {[%clk 00:03:07]} Bf5 {[%clk 00:03:04]}
{[%emt 00:00:02]} 6. Be2 {[%clk 00:03:08]} {[%emt 00:00:01]} e6 {[%clk
00:03:04]} {[%emt 00:00:03]} 7. O-O {[%clk 00:03:08]} {[%emt 00:00:01]} Bd6
{[%clk 00:03:04]} {[%emt 00:00:02]} 8. c5 {[%clk 00:03:09]} {[%emt 00:00:01]}
Bc7 {[%clk 00:03:05]} {[%emt 00:00:01]} 9. b4 {[%clk 00:03:09]} {[%emt
00:00:01]} O-O {[%clk 00:03:04]} {[%emt 00:00:03]} 10. a4 {[%clk 00:03:09]}
{[%emt 00:00:02]} Nbd7 {[%clk 00:03:03]} {[%emt 00:00:03]} 11. Bd2 {[%clk
00:03:04]} {[%emt 00:00:07]} e5 {[%clk 00:03:00]} {[%emt 00:00:06]} 12. b5
{[%clk 00:02:59]} {[%emt 00:00:07]} e4 {[%clk 00:02:58]} {[%emt 00:00:04]} 13.
Ne1 {[%clk 00:03:00]} {[%emt 00:00:01]} axb5 {[%clk 00:02:41]} {[%emt
00:00:20]} 14. axb5 {[%clk 00:03:00]} {[%emt 00:00:02]} Rxa1 {[%clk 00:02:40]}
{[%emt 00:00:03]} 15. Qxa1 {[%clk 00:03:01]} Qe7 {[%clk 00:02:32]} {[%emt
00:00:11]} 16. bxc6 {[%clk 00:03:00]} {[%emt 00:00:03]} bxc6 {[%clk 00:02:33]}
17. Nc2 {[%clk 00:02:59]} {[%emt 00:00:03]} Rb8 {[%clk 00:02:29]} {[%emt
00:00:06]} 18. Rb1 {[%clk 00:02:48]} {[%emt 00:00:13]} Qd8 {[%clk 00:02:27]}
{[%emt 00:00:04]} 19. Nb4 {[%clk 00:02:46]} {[%emt 00:00:03]} Qc8 {[%clk
00:02:07]} {[%emt 00:00:22]} 20. Nxc6 {[%clk 00:02:43]} {[%emt 00:00:05]} Rxb1+
{[%clk 00:02:05]} {[%emt 00:00:04]} 21. Qxb1 {[%clk 00:02:30]} {[%emt
00:00:16]} Bxh2+ {[%clk 00:02:03]} {[%emt 00:00:05]} 22. Kxh2 {[%clk 00:02:30]}
{[%emt 00:00:02]} Qxc6 {[%clk 00:02:04]} {[%emt 00:00:01]} 23. Bb5 {[%clk
00:02:22]} {[%emt 00:00:10]} Qc7+ {[%clk 00:02:01]} {[%emt 00:00:05]} 24. Kg1
{[%clk 00:02:23]} {[%emt 00:00:01]} h6 {[%clk 00:01:56]} {[%emt 00:00:07]} 25.
Bxd7 {[%clk 00:02:22]} {[%emt 00:00:03]} Qxd7 {[%clk 00:01:56]} {[%emt
00:00:02]} 26. Qb8+ {[%clk 00:02:16]} {[%emt 00:00:07]} Kh7 {[%clk 00:01:57]}
{[%emt 00:00:01]} 27. Qe5 {[%clk 00:02:15]} {[%emt 00:00:02]} Be6 {[%clk
00:01:52]} {[%emt 00:00:08]} 28. f3 {[%clk 00:02:09]} {[%emt 00:00:08]} exf3
{[%clk 00:01:52]} {[%emt 00:00:02]} 29. gxf3 {[%clk 00:02:10]} {[%emt
00:00:01]} Qc6 {[%clk 00:01:37]} {[%emt 00:00:17]} 30. e4 {[%clk 00:02:07]}
{[%emt 00:00:05]} dxe4 {[%clk 00:01:37]} {[%emt 00:00:02]} 31. fxe4 {[%clk
00:02:08]} Bc4 {[%clk 00:01:25]} {[%emt 00:00:14]} 32. Kf2 {[%clk 00:02:00]}
{[%emt 00:00:10]} Ng4+ {[%clk 00:01:26]} {[%emt 00:00:02]} 33. Kf3 {[%clk
00:01:53]} {[%emt 00:00:09]} Nxe5+ {[%clk 00:01:27]} {[%emt 00:00:01]} 34. dxe5
{[%clk 00:01:54]} Qxc5 {[%clk 00:01:28]} {[%emt 00:00:02]} 35. Be3 {[%clk
00:01:55]} Qxe5 {[%clk 00:01:29]} {[%emt 00:00:02]} 36. Nd5 {[%clk 00:01:56]}
Bxd5 {[%clk 00:01:29]} {[%emt 00:00:02]} 37. exd5 {[%clk 00:01:57]} {[%emt
00:00:01]} Qxd5+ {[%clk 00:01:30]} 0-1

[ePGN "0.1;DGT LiveChess/2.2.5"]

[Event "Biel DQA Blitzn"]
[Site "Biel/Bienne, Switzerland"]
[Date "2022.07.17"]
[Round "5.1"]
[White "Keymer, Cecilia"]
[Black "Cornileau, Juliette"]
[Result "0-1"]
[TimeControl "3 min + 2 sec"]
[WhiteElo "1652"]
[BlackElo "1653"]

1. d4 {[%clk 00:03:02]} {[%emt 00:00:02]} Nf6 {[%clk 00:02:55]} {[%emt
00:00:09]} 2. c4 {[%clk 00:03:03]} {[%emt 00:00:02]} e6 {[%clk 00:02:55]} 3.
Nf3 {[%clk 00:03:04]} Bb4+ {[%clk 00:02:56]} {[%emt 00:00:02]} 4. Bd2 {[%clk
00:03:04]} {[%emt 00:00:02]} Qe7 {[%clk 00:02:57]} 5. a3 {[%clk 00:03:00]}
{[%emt 00:00:06]} Bxd2+ {[%clk 00:02:57]} {[%emt 00:00:02]} 6. Qxd2 {[%clk
00:03:00]} {[%emt 00:00:02]} d6 {[%clk 00:02:59]} {[%emt 00:00:01]} 7. Nc3
{[%clk 00:03:00]} {[%emt 00:00:01]} O-O {[%clk 00:02:56]} {[%emt 00:00:04]} 8.
e4 {[%clk 00:03:01]} {[%emt 00:00:01]} e5 {[%clk 00:02:55]} {[%emt 00:00:03]} 9.
d5 {[%clk 00:02:58]} {[%emt 00:00:04]} a5 {[%clk 00:02:57]} {[%emt 00:00:01]}
10. Bd3 {[%clk 00:02:56]} {[%emt 00:00:05]} Na6 {[%clk 00:02:57]} {[%emt
00:00:01]} 11. O-O {[%clk 00:02:50]} {[%emt 00:00:08]} Nc5 {[%clk 00:02:58]} 12.
Bc2 {[%clk 00:02:51]} {[%emt 00:00:01]} a4 {[%clk 00:02:54]} {[%emt 00:00:06]}
13. Rfe1 {[%clk 00:02:37]} {[%emt 00:00:16]} Nh5 {[%clk 00:02:47]} {[%emt
00:00:08]} 14. Qg5 {[%clk 00:02:26]} {[%emt 00:00:13]} Qxg5 {[%clk 00:02:39]}
{[%emt 00:00:11]} 15. Nxg5 {[%clk 00:02:28]} h6 {[%clk 00:02:22]} {[%emt
00:00:19]} 16. Nf3 {[%clk 00:02:26]} {[%emt 00:00:03]} c6 {[%clk 00:01:20]}
{[%emt 00:01:04]} 17. g3 {[%clk 00:02:22]} {[%emt 00:00:05]} Nf6 {[%clk
00:01:12]} {[%emt 00:00:10]} 18. Kg2 {[%clk 00:02:21]} {[%emt 00:00:04]} Rd8
{[%clk 00:01:03]} {[%emt 00:00:11]} 19. Nd2 {[%clk 00:02:19]} {[%emt 00:00:04]}
cxd5 {[%clk 00:00:51]} {[%emt 00:00:14]} 20. cxd5 {[%clk 00:02:13]} {[%emt
00:00:08]} b6 {[%clk 00:00:52]} {[%emt 00:00:02]} 21. b4 {[%clk 00:02:06]}
{[%emt 00:00:09]} axb3 {[%clk 00:00:51]} {[%emt 00:00:03]} 22. Nxb3 {[%clk
00:02:07]} {[%emt 00:00:01]} Bd7 {[%clk 00:00:37]} {[%emt 00:00:17]} 23. Nxc5
{[%clk 00:02:04]} {[%emt 00:00:05]} bxc5 {[%clk 00:00:38]} {[%emt 00:00:01]} 24.
a4 {[%clk 00:01:58]} {[%emt 00:00:08]} Ra5 {[%clk 00:00:38]} {[%emt 00:00:02]}
25. Nb5 {[%clk 00:01:58]} {[%emt 00:00:02]} Bxb5 {[%clk 00:00:34]} {[%emt
00:00:05]} 26. axb5 {[%clk 00:01:57]} {[%emt 00:00:03]} Rxb5 {[%clk 00:00:36]}
27. Reb1 {[%clk 00:01:54]} {[%emt 00:00:04]} Rb4 {[%clk 00:00:19]} {[%emt
00:00:19]} 28. Kf3 {[%clk 00:01:50]} {[%emt 00:00:06]} Rdb8 {[%clk 00:00:18]}
{[%emt 00:00:03]} 29. Bd3 {[%clk 00:01:44]} {[%emt 00:00:07]} Rb3 {[%clk
00:00:17]} {[%emt 00:00:04]} 30. Rxb3 {[%clk 00:01:41]} {[%emt 00:00:06]} Rxb3
{[%clk 00:00:18]} {[%emt 00:00:01]} 31. Ke2 {[%clk 00:01:41]} {[%emt 00:00:01]}
Rb2+ {[%clk 00:00:18]} {[%emt 00:00:02]} 32. Ke3 {[%clk 00:01:42]} {[%emt
00:00:01]} Ng4+ {[%clk 00:00:19]} {[%emt 00:00:02]} 33. Kf3 {[%emt 00:00:07]}
Nxf2 {[%clk 00:00:17]} {[%emt 00:00:01]} 34. Bc4 {[%clk 00:01:23]} {[%emt
00:00:18]} Rb4 {[%clk 00:00:13]} {[%emt 00:00:06]} 35. Kxf2 {[%clk 00:01:21]}
{[%emt 00:00:03]} Rxc4 {[%clk 00:00:14]} {[%emt 00:00:01]} 36. Ke3 {[%clk
00:01:20]} {[%emt 00:00:03]} Kf8 {[%clk 00:00:15]} {[%emt 00:00:01]} 37. h3
{[%clk 00:01:16]} {[%emt 00:00:06]} Rc3+ {[%clk 00:00:17]} 38. Kf2 {[%clk
00:01:17]} {[%emt 00:00:01]} Rc2+ {[%clk 00:00:18]} {[%emt 00:00:01]} 39. Kf3
{[%clk 00:01:18]} Rc3+ {[%clk 00:00:19]} 40. Kf2 {[%emt 00:00:02]} Rd3 {[%clk
00:00:18]} {[%emt 00:00:02]} 41. Rc1 {[%clk 00:01:20]} {[%emt 00:00:01]} Rd2+
{[%clk 00:00:18]} {[%emt 00:00:02]} 42. Kf3 {[%clk 00:01:22]} Rd3+ {[%clk
00:00:19]} {[%emt 00:00:01]} 43. Kf2 {[%clk 00:01:23]} Rd4 {[%clk 00:00:21]}
{[%emt 00:00:01]} 44. Kf3 {[%clk 00:01:24]} {[%emt 00:00:01]} Ke7 {[%clk
00:00:22]} 45. Rc3 {[%clk 00:01:23]} {[%emt 00:00:03]} c4 {[%clk 00:00:15]}
{[%emt 00:00:09]} 46. Ke3 {[%clk 00:01:20]} {[%emt 00:00:04]} Rd3+ {[%clk
00:00:15]} {[%emt 00:00:02]} 47. Rxd3 {[%clk 00:01:20]} {[%emt 00:00:02]} cxd3
{[%clk 00:00:17]} 48. Kxd3 {[%clk 00:01:21]} Kf6 {[%clk 00:00:17]} {[%emt
00:00:01]} 49. Ke3 {[%clk 00:01:23]} Kg5 {[%clk 00:00:18]} 50. Kf3 {[%clk
00:01:20]} {[%emt 00:00:05]} f5 {[%clk 00:00:19]} 51. exf5 {[%clk 00:01:18]}
{[%emt 00:00:04]} Kxf5 {[%clk 00:00:20]} {[%emt 00:00:01]} 52. Ke3 {[%clk
00:01:18]} h5 {[%clk 00:00:21]} {[%emt 00:00:02]} 53. Kf3 {[%clk 00:01:16]}
{[%emt 00:00:04]} e4+ {[%clk 00:00:22]} {[%emt 00:00:02]} 54. Ke3 {[%emt
00:00:05]} Ke5 55. g4 {[%clk 00:01:12]} {[%emt 00:00:03]} hxg4 {[%clk
00:00:22]} {[%emt 00:00:03]} 56. hxg4 {[%clk 00:01:13]} Kxd5 {[%clk 00:00:23]}
57. Kf4 {[%clk 00:01:13]} {[%emt 00:00:02]} Kd4 {[%clk 00:00:24]} {[%emt
00:00:01]} 58. Kf5 {[%clk 00:01:09]} {[%emt 00:00:05]} e3 {[%clk 00:00:26]} 59.
Kg6 {[%clk 00:01:10]} {[%emt 00:00:01]} e2 {[%clk 00:00:27]} 60. Kxg7 {[%clk
00:01:10]} {[%emt 00:00:03]} e1=Q {[%clk 00:00:28]} 61. g5 {[%clk 00:01:11]}
Qg3 {[%clk 00:00:21]} {[%emt 00:00:09]} 62. g6 {[%clk 00:01:12]} {[%emt
00:00:01]} Kc3 {[%clk 00:00:22]} {[%emt 00:00:01]} 63. Kh7 {[%clk 00:01:11]}
{[%emt 00:00:03]} d5 {[%clk 00:00:23]} {[%emt 00:00:02]} 64. g7 {[%clk
00:01:12]} d4 {[%clk 00:00:23]} {[%emt 00:00:02]} 65. g8=Q {[%clk 00:01:11]}
{[%emt 00:00:03]} Qxg8+ {[%clk 00:00:24]} {[%emt 00:00:01]} 66. Kxg8 {[%clk
00:01:11]} {[%emt 00:00:02]} d3 {[%clk 00:00:25]} 0-1

[Event "Biel DQA Blitzn"]
[Site "Biel/Bienne, Switzerland"]
[Date "2022.07.17"]
[Round "5.2"]
[White "Sumarriva Paulin, Laura"]
[Black "Avilova, Yulia"]
[Result "1-0"]
[TimeControl "3 min + 2 sec"]
[WhiteElo "1886"]
[BlackElo "1597"]

1. e4 {[%clk 00:03:02]} {[%emt 00:00:01]} c5 {[%clk 00:03:03]} {[%emt
00:00:02]} 2. Nc3 {[%clk 00:03:03]} {[%emt 00:00:01]} d6 {[%clk 00:03:04]} 3.
g3 {[%clk 00:03:04]} {[%emt 00:00:01]} Nf6 {[%clk 00:03:01]} {[%emt 00:00:04]}
4. Bg2 {[%clk 00:03:04]} {[%emt 00:00:01]} e6 {[%clk 00:03:02]} {[%emt
00:00:01]} 5. d3 {[%clk 00:03:04]} {[%emt 00:00:02]} Be7 {[%clk 00:03:03]}
{[%emt 00:00:01]} 6. Nge2 {[%clk 00:03:03]} {[%emt 00:00:02]} Nc6 {[%clk
00:03:04]} {[%emt 00:00:02]} 7. O-O {[%clk 00:03:03]} {[%emt 00:00:02]} O-O
{[%clk 00:03:03]} {[%emt 00:00:02]} 8. h3 {[%clk 00:03:01]} {[%emt 00:00:04]}
a6 {[%clk 00:03:04]} {[%emt 00:00:02]} 9. f4 {[%clk 00:03:01]} {[%emt
00:00:02]} b5 {[%clk 00:03:04]} {[%emt 00:00:03]} 10. a3 {[%clk 00:02:43]}
{[%emt 00:00:20]} b4 {[%clk 00:03:02]} {[%emt 00:00:03]} 11. axb4 {[%clk
00:02:43]} {[%emt 00:00:02]} cxb4 {[%clk 00:03:03]} 12. Na4 {[%clk 00:02:42]}
{[%emt 00:00:03]} a5 {[%clk 00:02:57]} {[%emt 00:00:07]} 13. c3 {[%clk
00:02:38]} {[%emt 00:00:06]} Qc7 {[%clk 00:02:48]} {[%emt 00:00:12]} 14. Kh2
{[%clk 00:02:32]} {[%emt 00:00:09]} Ba6 {[%clk 00:02:38]} {[%emt 00:00:12]} 15.
d4 {[%clk 00:02:24]} {[%emt 00:00:09]} Rfd8 {[%clk 00:02:18]} {[%emt 00:00:22]}
16. d5 {[%clk 00:02:16]} {[%emt 00:00:10]} Nb8 {[%clk 00:02:03]} {[%emt
00:00:17]} 17. Re1 {[%clk 00:02:13]} {[%emt 00:00:05]} e5 {[%clk 00:01:56]}
{[%emt 00:00:09]} 18. f5 {[%clk 00:02:05]} {[%emt 00:00:10]} Nbd7 {[%clk
00:01:53]} {[%emt 00:00:05]} 19. Be3 {[%clk 00:02:02]} {[%emt 00:00:05]} Nc5
{[%clk 00:01:34]} {[%emt 00:00:21]} 20. Nxc5 {[%clk 00:01:58]} {[%emt
00:00:07]} dxc5 {[%clk 00:01:35]} {[%emt 00:00:01]} 21. g4 {[%clk 00:01:50]}
{[%emt 00:00:09]} Rac8 {[%clk 00:01:24]} {[%emt 00:00:12]} 22. Qc2 {[%clk
00:01:44]} {[%emt 00:00:10]} c4 {[%clk 00:01:20]} {[%emt 00:00:07]} 23. cxb4
{[%clk 00:01:41]} {[%emt 00:00:05]} Bxb4 {[%clk 00:01:20]} {[%emt 00:00:01]} 24.
Bd2 {[%clk 00:01:40]} {[%emt 00:00:03]} Bb5 {[%clk 00:01:14]} {[%emt 00:00:09]}
25. Nc3 {[%clk 00:01:31]} {[%emt 00:00:11]} Bd7 {[%clk 00:01:11]} {[%emt
00:00:05]} 26. Rf1 {[%clk 00:01:16]} {[%emt 00:00:16]} Ne8 {[%clk 00:01:10]}
{[%emt 00:00:02]} 27. g5 {[%clk 00:01:15]} {[%emt 00:00:04]} f6 {[%clk
00:01:10]} {[%emt 00:00:03]} 28. h4 {[%clk 00:01:13]} {[%emt 00:00:03]} fxg5
{[%clk 00:01:08]} {[%emt 00:00:04]} 29. hxg5 {[%clk 00:01:11]} {[%emt
00:00:05]} Be7 {[%clk 00:01:06]} {[%emt 00:00:04]} 30. Qd1 {[%clk 00:01:10]}
{[%emt 00:00:03]} Nd6 {[%clk 00:01:02]} {[%emt 00:00:06]} 31. Qh5 {[%clk
00:01:08]} {[%emt 00:00:03]} Rf8 {[%clk 00:00:59]} {[%emt 00:00:06]} 32. g6
{[%clk 00:01:01]} {[%emt 00:00:10]} hxg6 {[%clk 00:00:52]} {[%emt 00:00:09]} 33.
fxg6 {[%clk 00:01:00]} {[%emt 00:00:03]} Rxf1 {[%clk 00:00:52]} {[%emt
00:00:02]} 34. Qh7+ {[%clk 00:00:55]} {[%emt 00:00:07]} Kf8 {[%clk 00:00:53]}
{[%emt 00:00:02]} 35. Qh8# {[%clk 00:00:56]} {[%emt 00:00:01]} 1-0

[Event "Biel DQA Blitzn"]
[Site "Biel/Bienne, Switzerland"]
[Date "2022.07.17"]
[Round "5.3"]
[White "Moracchini, Margaux"]
[Black "Zhuang, Yongzhe"]
[Result "1-0"]
[TimeControl "3 min + 2 sec"]
[WhiteElo "1825"]
[BlackElo "1681"]

1. e4 {[%clk 00:03:02]} {[%emt 00:00:01]} e5 {[%clk 00:03:03]} {[%emt
00:00:01]} 2. Nf3 {[%clk 00:03:03]} {[%emt 00:00:01]} Nf6 {[%clk 00:03:03]}
{[%emt 00:00:02]} 3. Nxe5 {[%clk 00:03:03]} {[%emt 00:00:02]} d6 {[%clk
00:03:04]} {[%emt 00:00:01]} 4. Nf3 {[%clk 00:03:04]} {[%emt 00:00:01]} Nxe4
{[%clk 00:03:04]} {[%emt 00:00:02]} 5. Nc3 {[%clk 00:03:05]} {[%emt 00:00:01]}
Nxc3 {[%clk 00:03:04]} {[%emt 00:00:02]} 6. dxc3 {[%clk 00:03:06]} {[%emt
00:00:01]} Be7 {[%clk 00:03:04]} 7. Bd3 {[%clk 00:02:57]} {[%emt 00:00:11]} Nd7
{[%clk 00:03:04]} {[%emt 00:00:02]} 8. Bf4 {[%clk 00:02:50]} {[%emt 00:00:09]}
Nc5 {[%clk 00:03:05]} {[%emt 00:00:02]} 9. Qd2 {[%clk 00:02:47]} {[%emt
00:00:06]} Nxd3+ {[%clk 00:03:05]} {[%emt 00:00:02]} 10. cxd3 {[%clk 00:02:46]}
{[%emt 00:00:03]} O-O {[%clk 00:02:59]} {[%emt 00:00:07]} 11. O-O {[%clk
00:02:43]} {[%emt 00:00:04]} d5 {[%clk 00:02:26]} {[%emt 00:00:36]} 12. Rfe1
{[%clk 00:02:37]} {[%emt 00:00:09]} c5 {[%clk 00:02:15]} {[%emt 00:00:13]} 13.
d4 {[%clk 00:02:04]} {[%emt 00:00:35]} c4 {[%clk 00:01:26]} {[%emt 00:00:51]}
14. Bg5 {[%clk 00:01:51]} {[%emt 00:00:14]} Bxg5 {[%clk 00:01:24]} {[%emt
00:00:04]} 15. Qxg5 {[%clk 00:01:49]} {[%emt 00:00:05]} h6 {[%clk 00:01:04]}
{[%emt 00:00:22]} 16. Qxd8 {[%clk 00:01:40]} {[%emt 00:00:11]} Rxd8 {[%clk
00:01:04]} {[%emt 00:00:01]} 17. Re7 {[%clk 00:01:41]} {[%emt 00:00:01]} b5
{[%clk 00:00:54]} {[%emt 00:00:12]} 18. Ne5 {[%clk 00:01:13]} {[%emt 00:00:30]}
Be6 {[%clk 00:00:54]} {[%emt 00:00:02]} 19. Nc6 {[%clk 00:01:01]} {[%emt
00:00:15]} Rd7 {[%clk 00:00:54]} {[%emt 00:00:02]} 20. Rxd7 {[%clk 00:01:00]}
{[%emt 00:00:03]} Bxd7 {[%clk 00:00:55]} {[%emt 00:00:01]} 21. Ne7+ {[%clk
00:01:01]} Kf8 {[%clk 00:00:51]} {[%emt 00:00:05]} 22. Nxd5 {[%clk 00:01:02]}
{[%emt 00:00:02]} Re8 {[%clk 00:00:35]} {[%emt 00:00:18]} 23. Kf1 {[%clk
00:01:00]} {[%emt 00:00:05]} Bf5 {[%clk 00:00:28]} {[%emt 00:00:08]} 24. Ne3
{[%clk 00:00:53]} {[%emt 00:00:09]} Bd3+ {[%clk 00:00:26]} {[%emt 00:00:04]} 25.
Ke1 {[%clk 00:00:53]} {[%emt 00:00:02]} f5 {[%clk 00:00:24]} {[%emt 00:00:04]}
26. g3 {[%clk 00:00:48]} {[%emt 00:00:08]} g5 {[%clk 00:00:24]} {[%emt
00:00:02]} 27. Kd2 {[%clk 00:00:33]} {[%emt 00:00:17]} f4 {[%clk 00:00:24]} 28.
gxf4 {[%clk 00:00:34]} {[%emt 00:00:01]} gxf4 {[%clk 00:00:25]} {[%emt
00:00:01]} 29. Nd1 {[%clk 00:00:27]} {[%emt 00:00:09]} Re2+ {[%emt 00:00:02]}
30. Kc1 Rc2+ {[%clk 00:00:26]} {[%emt 00:00:02]} 31. Kb1 {[%clk 00:00:30]}
Rxf2+ {[%clk 00:00:24]} {[%emt 00:00:04]} 32. Kc1 {[%clk 00:00:32]} Rc2+ {[%emt
00:00:05]} 33. Kb1 Rxh2+ {[%clk 00:00:21]} {[%emt 00:00:02]} 34. Kc1 {[%clk
00:00:35]} Rh1 {[%clk 00:00:06]} {[%emt 00:00:17]} 35. a4 {[%clk 00:00:35]}
{[%emt 00:00:03]} Be2 {[%clk 00:00:04]} {[%emt 00:00:05]} 36. Kd2 {[%clk
00:00:35]} {[%emt 00:00:01]} Bxd1 {[%clk 00:00:03]} {[%emt 00:00:03]} 37. Rxd1
{[%clk 00:00:34]} {[%emt 00:00:03]} 1-0